bitfinex/quotes_BTCUSD_20250118
["timestamp","ask_amount","ask_price","bid_price","bid_amount"]
[1737187181765,0.1,102740.0,102730.0,0.18689073]
[1737187181900,0.1,102740.0,102730.0,0.21270274]
[1737187183971,0.1,102740.0,102730.0,0.28423273]
[1737187184172,0.1,102740.0,102730.0,0.21270274]
[1737187188500,0.13201664,102740.0,102730.0,0.30229693]
[1737187188677,0.13201664,102740.0,102730.0,0.30813693]
[1737187188874,0.23201664,102740.0,102730.0,0.30813693]
[1737187189091,0.21818867,102740.0,102730.0,0.30813693]
[1737187193158,0.34929729,102740.0,102730.0,0.30813693]
[1737187193553,0.34929729,102740.0,102730.0,0.30229693]
[1737187193805,0.51816028,102740.0,102730.0,0.01027993]
[1737187194006,0.51816028,102740.0,102730.0,0.01611993]
[1737187194207,0.44663029,102740.0,102730.0,0.01027993]
[1737187194408,0.51816028,102740.0,102730.0,0.01027993]
[1737187194641,0.44663029,102740.0,102730.0,0.01611993]
[1737187194928,0.4475291,102740.0,102730.0,0.01611993]
[1737187195131,0.62236697,102740.0,102730.0,0.01611993]
[1737187195580,0.62236697,102740.0,102730.0,0.11346193]
[1737187198573,0.62236697,102740.0,102730.0,0.01611993]
[1737187199256,0.62236697,102740.0,102730.0,0.11346193]
[1737187200160,0.62236697,102740.0,102730.0,0.10361]
[1737187200522,0.22903181,102740.0,102730.0,0.10361]
[1737187200902,0.22903181,102740.0,102730.0,0.006268]
[1737187201125,0.22903181,102740.0,102730.0,0.10361]
[1737187202052,0.22903181,102740.0,102730.0,0.09777]
[1737187202256,0.22903181,102740.0,102730.0,0.10361]
[1737187203900,0.62263086,102740.0,102730.0,0.10361]
[1737187204812,0.62263086,102740.0,102730.0,0.11338158]
[1737187205162,0.63235292,102740.0,102730.0,0.11338158]
[1737187205376,0.63235292,102740.0,102730.0,0.01603958]
[1737187205583,0.63235292,102740.0,102730.0,0.10361]
[1737187205811,0.63235292,102740.0,102730.0,0.006268]
[1737187206396,0.70388291,102740.0,102730.0,0.006268]
[1737187206820,0.7754129,102740.0,102730.0,0.006268]
[1737187206992,0.7754129,102740.0,102730.0,0.000428]
[1737187207168,0.70388291,102740.0,102730.0,0.000428]
[1737187208574,0.80312372,102740.0,102730.0,0.000428]
[1737187208770,0.89971829,102740.0,102730.0,0.000428]
[1737187209402,0.79971829,102740.0,102730.0,0.000428]
[1737187209837,0.80258465,102740.0,102730.0,0.000428]
[1737187210039,0.70258465,102740.0,102730.0,0.000428]
[1737187210165,0.63105466,102740.0,102730.0,0.000428]
[1737187211063,0.89345101,102740.0,102730.0,0.000428]
[1737187211475,0.987981,102740.0,102730.0,0.000428]
[1737187211685,0.91645101,102740.0,102730.0,0.000428]
[1737187211929,0.987981,102740.0,102730.0,0.000428]
[1737187212576,0.91645101,102740.0,102730.0,0.000428]
[1737187214706,0.936172,102740.0,102730.0,0.000428]
[1737187215545,0.70039103,102740.0,102730.0,0.000428]
[1737187215770,0.60115022,102740.0,102730.0,0.000428]
[1737187216001,0.77268021,102740.0,102730.0,0.000428]
[1737187216202,0.67268021,102740.0,102730.0,0.000428]
[1737187216406,0.77268021,102740.0,102730.0,0.000428]
[1737187216619,0.8442102,102740.0,102730.0,0.000428]
[1737187216829,0.97443529,102740.0,102730.0,0.000428]
[1737187217251,0.9736761,102740.0,102730.0,0.000428]
[1737187217613,1.1390281,102740.0,102730.0,0.000428]
[1737187218204,0.7682573,102740.0,102730.0,0.000428]
[1737187218464,0.58976579,102740.0,102730.0,0.09777]
[1737187218863,0.58976579,102740.0,102730.0,0.000428]
[1737187219635,0.19717638,102740.0,102730.0,0.000428]
[1737187219838,0.19839319,102740.0,102730.0,0.000428]
[1737187226989,0.2856247,102740.0,102730.0,0.000428]
[1737187227197,0.28440789,102740.0,102730.0,0.000428]
[1737187228856,0.5387248,102740.0,102730.0,0.000428]
[1737187230304,0.8440827,102740.0,102730.0,0.000428]
[1737187230492,0.73496579,102740.0,102730.0,0.000428]
[1737187233706,0.94332351,102740.0,102730.0,0.000428]
[1737187234307,0.86632351,102740.0,102730.0,0.000428]
[1737187235111,1.01632351,102740.0,102730.0,0.000428]
[1737187235552,0.6237341,102740.0,102730.0,0.000428]
[1737187236290,0.88613045,102740.0,102730.0,0.000428]
[1737187241175,0.88613045,102740.0,102730.0,0.000388]
[1737187241366,0.92031372,102740.0,102730.0,0.000388]
[1737187246366,0.99196381,102740.0,102730.0,0.000388]
[1737187247262,0.270342,102730.0,102720.0,0.0004281]
[1737187247542,0.63818299,102730.0,102720.0,0.0004281]
[1737187247804,0.64441897,102730.0,102720.0,0.0004281]
[1737187248486,0.90624507,102730.0,102720.0,0.00058032]
[1737187249176,1.00864507,102730.0,102720.0,0.00058032]
[1737187249417,1.08378555,102730.0,102720.0,0.00058032]
[1737187249937,1.18302636,102730.0,102720.0,3.2e-07]
[1737187250212,1.20256265,102730.0,102720.0,3.2e-07]
[1737187250438,0.43189033,102700.0,102690.0,0.0004273]
[1737187250683,0.43189033,102700.0,102690.0,0.00093469]
[1737187250684,0.53113114,102700.0,102690.0,0.00093469]
[1737187250915,0.56022854,102700.0,102690.0,0.00093469]
[1737187252557,0.95290558,102700.0,102690.0,0.00093469]
[1737187253542,1.08373122,102700.0,102690.0,0.00093469]
[1737187254250,1.13373122,102700.0,102690.0,0.00093469]
[1737187255612,1.00290558,102700.0,102690.0,0.00093469]
[1737187257773,1.13357415,102700.0,102690.0,0.00093469]
[1737187259605,1.14502556,102700.0,102690.0,0.00093469]
[1737187260613,1.21280523,102700.0,102690.0,0.00093469]
[1737187260876,0.73750523,102700.0,102690.0,0.00093469]
[1737187261120,0.83826442,102700.0,102690.0,0.00093469]
[1737187261349,0.63826442,102700.0,102690.0,0.00093469]
[1737187261628,0.63826442,102700.0,102690.0,0.09831469]
[1737187262103,0.63082442,102700.0,102690.0,0.00093469]
[1737187262348,0.10747881,102700.0,102690.0,0.00677469]
[1737187262802,0.0060974,102700.0,102690.0,0.10415469]
[1737187263077,0.0060974,102700.0,102690.0,0.14935469]
[1737187263572,0.1046846,102700.0,102690.0,0.05197469]
[1737187263804,0.1046846,102700.0,102690.0,0.00677469]
[1737187264044,0.49214574,102700.0,102690.0,0.00677469]
[1737187264319,0.59092854,102700.0,102690.0,0.00677469]
[1737187264559,0.30270821,102700.0,102690.0,0.00093469]
[1737187264786,0.20270821,102700.0,102690.0,0.00093469]
[1737187265032,0.20360702,102700.0,102690.0,0.00093469]
[1737187265259,0.30360702,102700.0,102690.0,0.00093469]
[1737187265522,0.40360702,102700.0,102690.0,0.00093469]
[1737187265763,0.30360702,102700.0,102690.0,0.00093469]
[1737187266256,0.40360702,102700.0,102690.0,0.00093469]
[1737187266486,0.51282735,102700.0,102690.0,0.00093469]
[1737187266745,0.41282735,102700.0,102690.0,0.00093469]
[1737187266962,0.30360702,102700.0,102690.0,0.00093469]
[1737187267650,0.41282735,102700.0,102690.0,0.00093469]
[1737187267856,0.56452735,102700.0,102690.0,0.00093469]
[1737187268097,0.61452735,102700.0,102690.0,0.00093469]
[1737187269815,0.72374768,102700.0,102690.0,0.00093469]
[1737187270586,0.81076985,102700.0,102690.0,0.00093469]
[1737187271535,1.11596155,102700.0,102690.0,0.00093469]
[1737187272338,1.13511766,102700.0,102690.0,0.00093469]
[1737187273571,1.2662494,102700.0,102690.0,0.00093469]
[1737187274024,0.1,102660.0,102650.0,0.33989462]
[1737187274252,0.1,102660.0,102650.0,0.44320338]
[1737187274480,0.10607965,102660.0,102650.0,0.44320338]
[1737187274726,0.10729731,102660.0,102650.0,0.44320338]
[1737187276633,0.10729731,102660.0,102650.0,0.44363138]
[1737187277756,0.10607965,102660.0,102650.0,0.44363138]
[1737187278521,0.20607965,102660.0,102650.0,0.65209252]
[1737187279331,0.20607965,102660.0,102650.0,0.54287219]
[1737187281496,0.00607965,102660.0,102650.0,0.65209252]
[1737187282387,0.00607965,102660.0,102650.0,0.73955797]
[1737187283385,0.00607965,102660.0,102650.0,0.95822159]
[1737187284129,0.00607965,102660.0,102650.0,0.98773058]
[1737187284978,0.00607965,102660.0,102650.0,0.87851025]
[1737187285364,0.10607965,102660.0,102650.0,0.87851025]
[1737187285569,0.10607965,102660.0,102650.0,0.94399786]
[1737187285795,0.10607965,102660.0,102650.0,0.83477753]
[1737187286931,0.10607965,102660.0,102650.0,0.79057341]
[1737187288380,0.10607965,102660.0,102650.0,1.09608267]
[1737187288572,0.10607965,102660.0,102650.0,1.22523041]
[1737187289682,0.10607965,102660.0,102650.0,1.11601008]
[1737187292570,0.10607965,102660.0,102650.0,1.08650109]
[1737187292738,0.10607965,102660.0,102650.0,0.95556855]
[1737187292954,0.10607965,102660.0,102650.0,0.98508648]
[1737187293308,0.10607965,102660.0,102650.0,0.95556855]
[1737187293505,0.00607965,102660.0,102650.0,0.98508877]
[1737187293735,0.00607965,102660.0,102650.0,0.97924877]
[1737187293914,0.00607965,102660.0,102650.0,0.96516136]
[1737187294108,0.00607965,102660.0,102650.0,0.93564114]
[1737187295181,0.10729725,102660.0,102650.0,1.05492086]
[1737187295385,0.10607965,102660.0,102650.0,1.05492086]
[1737187297314,0.10607965,102660.0,102650.0,0.83672863]
[1737187298306,0.10607965,102660.0,102650.0,1.05492086]
[1737187300314,0.10697887,102660.0,102650.0,1.05492086]
[1737187300941,0.10697887,102660.0,102650.0,1.04992086]
[1737187301523,0.18227887,102660.0,102650.0,1.04992086]
[1737187301725,0.18349651,102660.0,102650.0,1.04992086]
[1737187302337,0.18349651,102660.0,102650.0,0.83172863]
[1737187303930,0.08349651,102660.0,102650.0,0.83172863]
[1737187304137,0.08349651,102660.0,102650.0,0.65715191]
[1737187305420,0.18349651,102660.0,102650.0,0.65715191]
[1737187305595,0.08349651,102660.0,102650.0,0.65715191]
[1737187310054,0.08349651,102660.0,102650.0,0.52603959]
[1737187310911,0.18090451,102660.0,102650.0,0.52603959]
[1737187311116,0.22710451,102660.0,102650.0,0.19114497]
[1737187311331,0.22588687,102660.0,102650.0,0.18530497]
[1737187311540,0.3351072,102660.0,102650.0,0.09372697]
[1737187311747,0.22588687,102660.0,102650.0,0.09372697]
[1737187311946,0.22588687,102660.0,102650.0,0.09676983]
[1737187312527,0.22588687,102660.0,102650.0,0.00936162]
[1737187313094,0.53434801,102660.0,102650.0,0.00352162]
[1737187313666,0.53434801,102660.0,102650.0,0.00936162]
[1737187315443,0.53434801,102660.0,102650.0,0.00352162]
[1737187316261,0.63434801,102660.0,102650.0,0.00352162]
[1737187317833,0.63434801,102660.0,102650.0,0.00047876]
[1737187318481,0.63434801,102660.0,102650.0,0.00352195]
[1737187319456,0.63434801,102660.0,102650.0,0.00133195]
[1737187323537,0.63434801,102660.0,102650.0,0.00176015]
[1737187323874,0.63458853,102660.0,102650.0,0.00176015]
[1737187324087,0.63434801,102660.0,102650.0,0.00176015]
[1737187326071,0.53434801,102660.0,102650.0,0.00176015]
[1737187326273,0.22588687,102660.0,102650.0,0.00176015]
[1737187327287,0.22588687,102660.0,102650.0,0.0004282]
[1737187328887,0.22588687,102660.0,102650.0,0.0978462]
[1737187329234,0.22588687,102660.0,102650.0,0.0004282]
[1737187330371,0.22588687,102660.0,102650.0,0.00771077]
[1737187331086,0.22588687,102660.0,102650.0,0.01355077]
[1737187331300,0.22588687,102660.0,102650.0,0.0062682]
[1737187332066,0.3351072,102660.0,102650.0,0.0062682]
[1737187332729,0.53434801,102660.0,102650.0,0.0062682]
[1737187333311,0.63434801,102660.0,102650.0,0.0062682]
[1737187333924,0.63434801,102660.0,102650.0,0.00347137]
[1737187334542,0.53434801,102660.0,102650.0,0.00347137]
[1737187334785,0.63434801,102660.0,102650.0,0.00347137]
[1737187337627,0.85212746,102660.0,102650.0,0.00347137]
[1737187338950,0.75212746,102660.0,102650.0,0.00347137]
[1737187339315,0.75236798,102660.0,102650.0,0.00347137]
[1737187339550,0.78662419,102660.0,102650.0,0.00347137]
[1737187344084,0.96114732,102660.0,102650.0,0.00347137]
[1737187344281,1.06114732,102660.0,102650.0,0.00347137]
[1737187344631,0.96114732,102660.0,102650.0,0.00347137]
[1737187345042,1.09219035,102660.0,102650.0,0.00347137]
[1737187347223,1.17957003,102660.0,102650.0,0.00347137]
[1737187353334,1.09219035,102660.0,102650.0,0.00347137]
[1737187355483,0.96152178,102660.0,102650.0,0.00347137]
[1737187363809,0.78699865,102660.0,102650.0,0.00347137]
[1737187366645,0.93699865,102660.0,102650.0,0.00347137]
[1737187368040,0.95999865,102660.0,102650.0,0.00347137]
[1737187368718,0.74184474,102660.0,102650.0,0.00347137]
[1737187369704,0.71358301,102660.0,102650.0,0.00347137]
[1737187371084,0.81598301,102660.0,102650.0,0.00347137]
[1737187371734,1.56343848,102660.0,102650.0,0.0004282]
[1737187371948,0.326527,102640.0,102630.0,0.0004275]
[1737187372158,0.59224435,102640.0,102630.0,0.00052614]
[1737187372362,0.59752273,102640.0,102630.0,0.00052614]
[1737187372577,0.81623481,102640.0,102630.0,0.00052614]
[1737187373035,0.88797308,102640.0,102630.0,0.00357049]
[1737187373242,0.81623481,102640.0,102630.0,0.00357049]
[1737187373449,1.0786893,102640.0,102630.0,0.00357049]
[1737187374317,0.81623481,102640.0,102630.0,0.00357049]
[1737187374958,0.81623481,102640.0,102630.0,0.00052614]
[1737187375369,0.99109697,102640.0,102630.0,0.00052614]
[1737187378349,1.00183359,102640.0,102630.0,0.00052614]
[1737187378556,1.02175046,102640.0,102630.0,0.00052614]
[1737187380847,1.09348873,102640.0,102630.0,0.00052614]
[1737187381061,1.02175046,102640.0,102630.0,0.00052614]
[1737187381521,1.09348873,102640.0,102630.0,0.00052614]
[1737187381953,1.02175046,102640.0,102630.0,0.00052614]
[1737187382182,1.00183359,102640.0,102630.0,0.00052614]
[1737187382379,0.90709532,102640.0,102630.0,0.00052614]
[1737187382584,1.07883359,102640.0,102630.0,0.00052614]
[1737187383449,1.07855651,102640.0,102630.0,0.00052614]
[1737187384462,0.90369435,102640.0,102630.0,0.00052614]
[1737187384916,0.80369435,102640.0,102630.0,0.00052614]
[1737187385112,0.73195608,102640.0,102630.0,0.00052614]
[1737187386120,0.43111781,102640.0,102630.0,0.00052614]
[1737187386319,0.22371338,102640.0,102630.0,0.10380314]
[1737187386538,0.19007938,102640.0,102630.0,0.10380314]
[1737187386878,0.19129734,102640.0,102630.0,0.10380314]
[1737187387086,0.19007938,102640.0,102630.0,0.10380314]
[1737187387321,0.19129734,102640.0,102630.0,0.10380314]
[1737187387942,0.10392334,102640.0,102630.0,0.10380314]
[1737187388144,0.10392334,102640.0,102630.0,0.00636614]
[1737187388518,0.45710242,102640.0,102630.0,0.00636614]
[1737187388667,0.45588446,102640.0,102630.0,0.00636614]
[1737187389092,0.45588446,102640.0,102630.0,0.00052614]
[1737187389269,0.35588446,102640.0,102630.0,0.00052614]
[1737187389465,0.10270538,102640.0,102630.0,0.09796314]
[1737187389822,0.10392334,102640.0,102630.0,0.09796314]
[1737187390073,0.10392334,102640.0,102630.0,0.10380314]
[1737187390510,0.17566161,102640.0,102630.0,0.10380314]
[1737187390715,0.10392334,102640.0,102630.0,0.10380314]
[1737187391086,0.17566161,102640.0,102630.0,0.00636614]
[1737187391328,0.17566161,102640.0,102630.0,0.00052614]
[1737187391559,0.10392334,102640.0,102630.0,0.00636614]
[1737187391794,0.17566161,102640.0,102630.0,0.10380314]
[1737187392311,0.17566161,102640.0,102630.0,0.00636614]
[1737187394725,0.10392334,102640.0,102630.0,0.00636614]
[1737187394931,0.17566161,102640.0,102630.0,0.00636614]
[1737187395758,0.17656104,102640.0,102630.0,0.00636614]
[1737187396588,0.17534308,102640.0,102630.0,0.00636614]
[1737187396795,0.10360481,102640.0,102630.0,0.00636614]
[1737187397001,0.25876106,102640.0,102630.0,0.00636614]
[1737187397276,0.25754308,102640.0,102630.0,0.00636614]
[1737187397883,0.45678389,102640.0,102630.0,0.00052614]
[1737187398305,0.59125789,102640.0,102630.0,0.00052614]
[1737187398952,0.66299616,102640.0,102630.0,0.00052614]
[1737187399564,1.03879543,102640.0,102630.0,0.00052614]
[1737187399815,0.96705716,102640.0,102630.0,0.00052614]
[1737187400620,1.03879543,102640.0,102630.0,0.00052614]
[1737187400829,1.01107665,102640.0,102630.0,0.00052614]
[1737187408702,1.0303142,102640.0,102630.0,0.00052614]
[1737187409517,1.00205247,102640.0,102630.0,0.00052614]
[1737187411121,1.4866511,102640.0,102630.0,0.00052614]
[1737187411917,1.41491283,102640.0,102630.0,0.00052614]
[1737187412901,1.22542296,102640.0,102630.0,0.00052614]
[1737187413828,1.32542296,102640.0,102630.0,0.00052614]
[1737187414034,1.22542296,102640.0,102630.0,0.00052614]
[1737187414601,1.32542296,102640.0,102630.0,0.00052614]
[1737187414971,0.93013191,102640.0,102630.0,0.00052614]
[1737187415496,1.00187018,102640.0,102630.0,0.00052614]
[1737187416749,1.48672827,102640.0,102630.0,0.00052614]
[1737187417388,1.49035452,102640.0,102630.0,0.00052614]
[1737187418023,1.19506347,102640.0,102630.0,0.00052614]
[1737187418224,0.495437,102630.0,102620.0,0.00015232]
[1737187418431,0.81898034,102630.0,102620.0,0.00015232]
[1737187419525,0.71898034,102630.0,102620.0,0.00015232]
[1737187419869,0.98121945,102630.0,102620.0,0.00015232]
[1737187420059,0.98121945,102630.0,102620.0,3.2e-07]
[1737187420875,1.01399933,102630.0,102620.0,3.2e-07]
[1737187422209,1.46563926,102630.0,102620.0,3.2e-07]
[1737187425519,0.98092599,102630.0,102620.0,3.2e-07]
[1737187427684,0.99107667,102630.0,102620.0,3.2e-07]
[1737187430936,0.99197526,102630.0,102620.0,3.2e-07]
[1737187433548,0.448346,102620.0,102610.0,0.00038842]
[1737187433806,0.65700734,102620.0,102610.0,0.00038842]
[1737187434043,0.66254755,102620.0,102610.0,0.00038842]
[1737187434744,0.59882702,102620.0,102610.0,0.00038842]
[1737187434952,0.91690889,102620.0,102610.0,0.00038842]
[1737187435179,1.11048853,102620.0,102610.0,0.00038842]
[1737187435384,0.89164747,102620.0,102610.0,0.00038842]
[1737187435807,1.001068,102620.0,102610.0,0.00038842]
[1737187436223,1.11048853,102620.0,102610.0,0.00038842]
[1737187436375,1.35442784,102620.0,102610.0,0.00038842]
[1737187437449,0.87013211,102620.0,102610.0,0.00038842]
[1737187439269,0.97955264,102620.0,102610.0,0.00038842]
[1737187439477,1.07879345,102620.0,102610.0,0.00038842]
[1737187439679,0.97955264,102620.0,102610.0,0.00038842]
[1737187440905,1.46393338,102620.0,102610.0,0.00038842]
[1737187442340,1.48327747,102620.0,102610.0,0.00038842]
[1737187442525,1.48327747,102620.0,102600.0,0.0012]
[1737187442526,0.71289706,102610.0,102600.0,0.0012]
[1737187442733,0.59329681,102610.0,102600.0,0.0012]
[1737187442966,0.59783158,102610.0,102600.0,0.0012]
[1737187443153,0.81667264,102610.0,102600.0,0.0012]
[1737187443773,1.07874519,102610.0,102600.0,0.0012]
[1737187443998,0.96932466,102610.0,102600.0,0.0012]
[1737187444941,0.94632466,102610.0,102600.0,0.0012]
[1737187445643,0.96932466,102610.0,102600.0,0.0012]
[1737187446473,0.92571662,102610.0,102600.0,0.0012]
[1737187446669,1.03513715,102610.0,102600.0,0.0012]
[1737187447072,1.13437796,102610.0,102600.0,0.0012]
[1737187447274,1.07874519,102610.0,102600.0,0.0012]
[1737187450187,1.56334296,102610.0,102600.0,0.0012]
[1737187450549,1.57380749,102610.0,102600.0,0.0012]
[1737187450887,1.47380749,102610.0,102600.0,0.0012]
[1737187451455,0.2005,102600.0,102580.0,0.0004279]
[1737187451667,0.335005,102590.0,102580.0,0.0004279]
[1737187451866,0.33378625,102590.0,102580.0,0.0004279]
[1737187452299,0.41128625,102590.0,102580.0,0.0004279]
[1737187452727,0.41143809,102590.0,102580.0,0.0004279]
[1737187452937,0.41143809,102590.0,102580.0,0.00347358]
[1737187453609,1.27319912,102590.0,102580.0,0.00347358]
[1737187454662,1.18580469,102590.0,102580.0,0.00347358]
[1737187455807,1.18115478,102590.0,102580.0,0.00347358]
[1737187455930,1.43571612,102590.0,102580.0,0.00347358]
[1737187456125,1.22629559,102590.0,102580.0,0.00347358]
[1737187457391,1.24541254,102590.0,102580.0,0.00347358]
[1737187457929,1.46775203,102590.0,102580.0,0.00347358]
[1737187458133,1.47820538,102590.0,102580.0,0.0004279]
[1737187458546,1.58762591,102590.0,102580.0,9e-07]
[1737187458775,0.84091982,102590.0,102580.0,9e-07]
[1737187458997,0.84091982,102590.0,102560.0,0.03397008]
[1737187458998,0.71273506,102570.0,102560.0,0.03397008]
[1737187459200,0.81197587,102570.0,102560.0,0.03397008]
[1737187459428,0.81197587,102570.0,102560.0,0.0309244]
[1737187460600,0.91121668,102570.0,102560.0,0.0309244]
[1737187461034,1.07399514,102570.0,102560.0,0.0309244]
[1737187462243,0.97399514,102570.0,102560.0,0.0309244]
[1737187462905,1.26876681,102570.0,102560.0,0.0309244]
[1737187464909,0.97399514,102570.0,102560.0,0.0309244]
[1737187465689,0.9936083,102570.0,102560.0,0.0009244]
[1737187465892,1.09284911,102570.0,102560.0,0.0009244]
[1737187467519,0.35522353,102560.0,102550.0,0.02940527]
[1737187467726,0.45446434,102560.0,102550.0,0.02940527]
[1737187469240,0.71597188,102560.0,102550.0,0.02940527]
[1737187470072,0.67229766,102560.0,102550.0,0.02940527]
[1737187470848,0.9338052,102560.0,102550.0,0.02940527]
[1737187471645,0.94426347,102560.0,102550.0,0.02940527]
[1737187472105,1.09426347,102560.0,102550.0,0.02940527]
[1737187472754,0.87643015,102560.0,102550.0,0.02940527]
[1737187476939,0.98585068,102560.0,102550.0,0.02940527]
[1737187477862,0.5521,102530.0,102520.0,6.7e-07]
[1737187478059,0.5521,102530.0,102460.0,0.38998489]
[1737187478060,0.19875,102470.0,102460.0,0.38998489]
[1737187478265,0.19875,102470.0,102460.0,0.1964457]
[1737187478463,0.19875,102470.0,102460.0,0.2025257]
[1737187478865,0.09875,102470.0,102460.0,0.11339025]
[1737187479063,0.09875,102470.0,102460.0,0.02188768]
[1737187479391,0.19875,102470.0,102460.0,0.11391345]
[1737187479549,0.19375,102470.0,102460.0,0.11391345]
[1737187479950,0.19375,102470.0,102460.0,0.12015345]
[1737187480574,0.19375,102470.0,102460.0,0.10781702]
[1737187480814,0.19375,102470.0,102460.0,0.11405702]
[1737187481160,0.291339,102470.0,102460.0,0.11405702]
[1737187481433,0.291339,102470.0,102460.0,0.00050677]
[1737187481711,0.19375,102470.0,102460.0,0.09810577]
[1737187482069,0.19375,102470.0,102460.0,0.10434577]
[1737187482702,0.29557981,102470.0,102460.0,0.00674677]
[1737187482902,0.19682981,102470.0,102460.0,0.00050677]
[1737187483183,0.19804982,102470.0,102460.0,0.00050677]
[1737187483815,0.097589,102470.0,102460.0,0.00050677]
[1737187483944,0.487925,102480.0,102460.0,0.29330277]
[1737187484128,0.58716581,102480.0,102460.0,0.48850077]
[1737187484614,0.29440881,102480.0,102460.0,0.48849977]
[1737187484819,0.48958181,102480.0,102460.0,0.29330277]
[1737187484974,0.09880889,102470.0,102460.0,0.09810577]
[1737187485173,0.1980497,102470.0,102460.0,0.00050677]
[1737187485373,0.30747023,102470.0,102460.0,0.00050677]
[1737187485593,0.19682981,102470.0,102460.0,0.00050677]
[1737187485767,0.19804982,102470.0,102460.0,0.00050677]
[1737187488161,0.49802893,102480.0,102460.0,0.09810577]
[1737187488401,0.097589,102470.0,102460.0,0.13123513]
[1737187488714,0.487928,102480.0,102460.0,0.13123513]
[1737187488941,0.00024052,102470.0,102460.0,0.13123513]
[1737187489147,0.09782952,102470.0,102460.0,0.03851386]
[1737187489341,0.09904939,102470.0,102460.0,0.03851386]
[1737187489906,0.1982902,102470.0,102460.0,0.0053845]
[1737187490532,0.1982902,102470.0,102460.0,0.0058127]
[1737187490745,0.55571073,102470.0,102460.0,0.0058127]
[1737187490970,0.55449086,102470.0,102460.0,0.0058127]
[1737187491190,0.68149086,102470.0,102460.0,0.0058127]
[1737187491454,0.68073167,102470.0,102460.0,0.00886145]
[1737187491691,1.56833167,102470.0,102460.0,0.00886145]
[1737187493032,0.70373167,102470.0,102460.0,0.00886145]
[1737187493268,0.8131522,102470.0,102460.0,0.00093497]
[1737187493472,0.70373167,102470.0,102460.0,0.00093497]
[1737187493809,0.1,102460.0,102450.0,0.23212277]
[1737187494023,0.71470121,102460.0,102450.0,0.23227324]
[1737187494228,0.71348087,102460.0,102450.0,0.06512924]
[1737187494382,0.71348087,102460.0,102450.0,6.2e-07]
[1737187495358,1.10550195,102460.0,102450.0,6.2e-07]
[1737187495563,0.918008,102450.0,102440.0,0.0233281]
[1737187495789,1.23608987,102450.0,102440.0,0.0233281]
[1737187495997,1.25908987,102450.0,102440.0,0.0233281]
[1737187496334,0.71348987,102450.0,102440.0,0.0233281]
[1737187496537,0.71348987,102450.0,102440.0,0.0232881]
[1737187496738,0.81273068,102450.0,102440.0,0.0232881]
[1737187497120,1.11626149,102450.0,102440.0,0.0232881]
[1737187497895,1.11626149,102450.0,102380.0,0.30099821]
[1737187497896,0.1,102380.0,102370.0,0.10942053]
[1737187498025,0.1,102380.0,102370.0,0.10482502]
[1737187498026,0.64308987,102380.0,102370.0,0.10482502]
[1737187498228,0.64308987,102380.0,102370.0,0.104324]
[1737187498409,0.25942053,102400.0,102390.0,0.097665]
[1737187498410,0.15,102400.0,102390.0,0.097665]
[1737187498612,0.1,102410.0,102390.0,0.195315]
[1737187498843,0.1,102400.0,102390.0,0.29298]
[1737187499224,0.1,102400.0,102390.0,0.29313061]
[1737187499856,0.20942053,102400.0,102390.0,0.29313061]
[1737187500259,0.1,102400.0,102390.0,0.29313061]
[1737187500714,0.1,102400.0,102390.0,0.29233061]
[1737187500918,0.20942053,102400.0,102390.0,0.29233061]
[1737187501179,0.45677808,102400.0,102390.0,0.00015061]
[1737187501377,0.55555727,102400.0,102390.0,0.00015061]
[1737187501676,0.45555727,102400.0,102390.0,0.00015061]
[1737187501879,0.25,102400.0,102390.0,0.00015061]
[1737187502104,0.45790127,102400.0,102390.0,0.00015061]
[1737187502224,0.35790127,102400.0,102390.0,0.00015061]
[1737187502429,0.55790127,102400.0,102390.0,0.09824411]
[1737187502625,0.1,102400.0,102390.0,0.19589911]
[1737187502836,0.20866046,102410.0,102400.0,0.097656]
[1737187503040,0.1,102410.0,102400.0,0.097656]
[1737187503462,0.32535249,102420.0,102400.0,0.195308]
[1737187503463,0.52535249,102420.0,102400.0,0.195308]
[1737187503828,0.42535249,102420.0,102410.0,0.097646]
[1737187504035,0.08673081,102420.0,102410.0,0.097646]
[1737187504237,9e-05,102420.0,102410.0,0.097646]
[1737187505261,9e-05,102420.0,102410.0,0.09814588]
[1737187505465,9e-05,102420.0,102410.0,0.19738669]
[1737187505642,9e-05,102420.0,102410.0,0.58138269]
[1737187505847,9e-05,102420.0,102410.0,0.47161281]
[1737187506051,9e-05,102420.0,102410.0,0.41212681]
[1737187506189,9e-05,102420.0,102410.0,0.19688681]
[1737187506602,0.32689,102420.0,102410.0,0.19688681]
[1737187507020,0.32689,102420.0,102410.0,0.097646]
[1737187507193,0.42689,102420.0,102400.0,0.390598]
[1737187507407,0.63479127,102420.0,102390.0,0.21084825]
[1737187507544,0.30790127,102410.0,102390.0,0.29355511]
[1737187507745,0.30790127,102410.0,102400.0,0.097656]
[1737187507980,0.30790127,102410.0,102390.0,0.29355311]
[1737187508187,0.30790127,102410.0,102400.0,0.097656]
[1737187508338,0.19924081,102410.0,102400.0,0.097656]
[1737187508548,0.20875046,102420.0,102390.0,0.20253311]
[1737187508744,0.19933081,102420.0,102410.0,0.097646]
[1737187509006,0.30799127,102420.0,102410.0,0.097646]
[1737187509178,0.10009,102420.0,102410.0,0.097646]
[1737187509546,9e-05,102420.0,102410.0,0.09814612]
[1737187510853,9e-05,102420.0,102410.0,0.19738693]
[1737187512035,0.07049,102440.0,102430.0,0.097627]
[1737187512411,0.17915046,102440.0,102430.0,0.097627]
[1737187512610,0.07049,102410.0,102390.0,0.3910635]
[1737187512818,0.10866046,102400.0,102390.0,0.0004285]
[1737187513020,0.10866046,102400.0,102390.0,0.0980935]
[1737187513217,0.37603827,102410.0,102390.0,0.24824411]
[1737187513418,0.27839127,102410.0,102390.0,0.44357511]
[1737187513579,0.27839127,102410.0,102390.0,0.29357511]
[1737187513785,0.37603827,102410.0,102390.0,0.29357511]
[1737187514007,0.27839127,102410.0,102390.0,0.29357511]
[1737187514257,0.10866046,102400.0,102390.0,0.44357511]
[1737187514817,0.27839127,102410.0,102390.0,0.63890611]
[1737187515019,0.0713907,102420.0,102410.0,0.097646]
[1737187515625,0.27929197,102420.0,102400.0,0.390595]
[1737187515828,0.27929197,102420.0,102400.0,0.488243]
[1737187515980,0.0009007,102420.0,102410.0,0.097646]
[1737187516188,0.10956116,102420.0,102410.0,0.097646]
[1737187516384,0.30644097,102420.0,102400.0,0.097648]
[1737187516618,0.10866046,102410.0,102390.0,0.48887511]
[1737187516826,0.37725782,102410.0,102390.0,0.29355511]
[1737187517036,0.16973081,102410.0,102390.0,0.29355511]
[1737187517241,0.27839127,102410.0,102390.0,0.29355511]
[1737187517551,0.1713907,102420.0,102400.0,0.097656]
[1737187517761,0.0009007,102420.0,102410.0,0.097646]
[1737187517968,0.10956116,102420.0,102410.0,0.097646]
[1737187518337,0.10956116,102420.0,102400.0,0.397399]
[1737187518534,0.10956116,102420.0,102400.0,0.5927]
[1737187518738,0.0009007,102420.0,102410.0,0.097646]